Workbook

Sheet Leap Year Template
C1: EMPLOYEE FUNDING PROFILE (EFP) | G1: Please complete the form, obtain and attach any necessary Memo(s) of Commitment, and retain for entry into eUMB.
C2: University of Maryland, Baltimore
A5: The Employee Funding Profile (EFP) is to be used by the Position Owner1 to manage funding source information for an individual employee. The Position Owner should establish and maintain one EFP for each employee for which they have fiscal authority. The EFP is a tool by which the Position Owner can manage funding profiles for the department’s employees.
A6: The EFP shows ALL funding sources that constitute the employee’s salary (and possibly fringes). When the Position Owner does not have direct fiscal authority over an account, a Memo of Commitment will need to be established between the Position Owner and the Account Owner for the appropriate portion of the employee’s overall funding profile. Since an employee’s overall funding may come from several sources, it is possible that an employee may have several Memos of Commitment. The EFP is used to capture the account codes, funding begin dates, funding end dates, and distribution percentages that have been agreed to through the use of the Memo(s) of Commitment. All Memo(s) of Commitment should be attached to the EFP for the Position Owner’s records.
A7: The sum of all distribution percentages for an employee must equal 100% for the duration of the fiscal year. Only one 'Begin Date' may be used for each record. For instance, several funding sources may be listed for an employee using Rcd #1, but all Rcd #1s must have the same 'Begin Date'.
A8: Employee ID: | C8: Employee Name: | E8: Department Code | F8: Department Name | I8: Effective Date | K8: Fiscal Year
A9: 999999 | C9: Template Tester | E9: 01000000 | F9: Testing Department | I9: 2019-07-01 | K9: 2020
A10: Account Status | B10: Combo Code | C10: Combo Code Name | E10: Annual Paid Salary | F10: Begin Date: | G10: End Date: | H10: Days: | I10: (%): | J10: Bi-Weekly Amount: | K10: Annual Amount: | N10: Memo Needed?
A11: New | B11: 5xxxxxxxxx | C11: State | E11: 100000 | F11: =I9 -> 2019-07-01 | G11: 2020-06-30 | H11: =(G11-F11)+1 -> 366 | I11: 0.5 | J11: =(K11/H11)*14 -> 1912.568306 | K11: =(E11*I11)*(H11/366) -> 50000
A12: New | B12: 5xxxxxxxxx | C12: Revolving | E12: 100000 | F12: =$F$11 -> 2019-07-01 | G12: 2020-06-30 | H12: =(G12-F12)+1 -> 366 | I12: 0.25 | J12: =(K12/H12)*14 -> 956.284153 | K12: =(E12*I12)*(H12/366) -> 25000
A13: New | B13: 5xxxxxxxxx | C13: Grant | E13: 100000 | F13: =$F$11 -> 2019-07-01 | G13: 2020-06-30 | H13: =(G13-F13)+1 -> 366 | I13: 0.25 | J13: =(K13/H13)*14 -> 956.284153 | K13: =(E13*I13)*(H13/366) -> 25000
A21: TOTALS | I21: =SUM(I11:I20) -> 1 | J21: =SUM(J11:J20) -> 3825.136612 | K21: =SUM(K11:M20) -> 100000
A23: Comments: | C23: Sample for Leap Year use
A24: 1Position Owner = Department representative who has fiscal authority for the department to which the employee is assigned.
A25: 2Account Owner = Department representative who has fiscal authority over the account.

Sheet Non-leap Year Template
C1: EMPLOYEE FUNDING PROFILE (EFP) | G1: Please complete the form, obtain and attach any necessary Memo(s) of Commitment, and retain for entry into eUMB.
C2: University of Maryland, Baltimore
A5: The Employee Funding Profile (EFP) is to be used by the Position Owner1 to manage funding source information for an individual employee. The Position Owner should establish and maintain one EFP for each employee for which they have fiscal authority. The EFP is a tool by which the Position Owner can manage funding profiles for the department’s employees.
A6: The EFP shows ALL funding sources that constitute the employee’s salary (and possibly fringes). When the Position Owner does not have direct fiscal authority over an account, a Memo of Commitment will need to be established between the Position Owner and the Account Owner for the appropriate portion of the employee’s overall funding profile. Since an employee’s overall funding may come from several sources, it is possible that an employee may have several Memos of Commitment. The EFP is used to capture the account codes, funding begin dates, funding end dates, and distribution percentages that have been agreed to through the use of the Memo(s) of Commitment. All Memo(s) of Commitment should be attached to the EFP for the Position Owner’s records.
A7: The sum of all distribution percentages for an employee must equal 100% for the duration of the fiscal year. Only one 'Begin Date' may be used for each record. For instance, several funding sources may be listed for an employee using Rcd #1, but all Rcd #1s must have the same 'Begin Date'.
A8: Employee ID: | C8: Employee Name: | E8: Department Code | F8: Department Name | I8: Effective Date | K8: Fiscal Year
A9: 999999 | C9: Template Tester | E9: 01000000 | F9: Testing Department | I9: 2019-07-01 | K9: 2020
A10: Account Status | B10: Combo Code | C10: Combo Code Name | E10: Annual Paid Salary | F10: Begin Date: | G10: End Date: | H10: Days: | I10: (%): | J10: Bi-Weekly Amount: | K10: Annual Amount: | N10: Memo Needed?
A11: New | B11: 5xxxxxxxxx | C11: State | E11: 100000 | F11: =I9 -> 2019-07-01 | G11: 2020-06-30 | H11: 365 | I11: 0.5 | J11: =(K11/H11)*14 -> 1917.808219 | K11: =(E11*I11)*(H11/365) -> 50000
A12: New | B12: 5xxxxxxxxx | C12: Revolving | E12: =$E$11 -> 100000 | F12: =$F$11 -> 2019-07-01 | G12: 2020-06-30 | H12: 365 | I12: 0.25 | J12: =(K12/H12)*14 -> 958.9041096 | K12: =(E12*I12)*(H12/365) -> 25000
A13: New | B13: 5xxxxxxxxx | C13: Grant | E13: =$E$11 -> 100000 | F13: =$F$11 -> 2019-07-01 | G13: 2020-06-30 | H13: 365 | I13: 0.25 | J13: =(K13/H13)*14 -> 958.9041096 | K13: =(E13*I13)*(H13/365) -> 25000
A21: TOTALS | I21: =SUM(I11:I20) -> 1 | J21: =SUM(J11:J20) -> 3835.616438 | K21: =SUM(K11:M20) -> 100000
A23: Comments: | C23: Sample for Non-leap year use
A24: 1Position Owner = Department representative who has fiscal authority for the department to which the employee is assigned.
A25: 2Account Owner = Department representative who has fiscal authority over the account.
